bitfinex-derivatives/quotes_ETHF0:USTF0_20210407
["timestamp","ask_amount","ask_price","bid_price","bid_amount"]
[1617793797308,2.90695,2010.8,2009.5,13.0985]
[1617793797508,78.6601,2010.6,2009.5,13.0985]
[1617793798110,78.6601,2010.6,2008.4,81.3408]
[1617793798311,78.6601,2010.6,2008.5,13.6376]
[1617793798512,78.6601,2010.6,2009.7,2.90695]
[1617793799408,78.6601,2010.6,2008.5,13.6376]
[1617793800416,109.6641,2010.6,2009.4,2.90695]
[1617793800610,79.6641,2010.6,2009.4,2.90695]
[1617793800814,78.6601,2010.6,2009.4,2.90695]
[1617793801013,108.6601,2010.6,2009.4,2.90695]
[1617793801213,2.0,2010.5,2009.4,2.90695]
[1617793801413,2.0,2010.5,2008.5,13.6376]
[1617793801613,32.0,2010.5,2008.5,13.6376]
[1617793802514,32.0,2010.5,2008.9,2.90695]
[1617793802713,2.0,2010.5,2008.9,2.90695]
[1617793802923,78.6601,2010.6,2008.9,2.90695]
[1617793804518,78.6601,2010.6,2010.1,2.90695]
[1617793804715,78.6601,2010.6,2010.1,4.82955]
[1617793806417,2.90695,2010.2,2010.1,4.82955]
[1617793808119,2.90695,2010.2,2010.1,2.90695]
[1617793808349,2.90695,2010.2,2008.5,16.3261]
[1617793808555,3.0439,2010.2,2009.7,2.90695]
[1617793808757,3.0439,2010.2,2008.5,13.6376]
[1617793810424,3.0439,2010.2,2009.5,2.90695]
[1617793811827,78.6601,2010.6,2009.5,2.90695]
[1617793812641,78.6601,2010.6,2009.9,2.90695]
[1617793812827,78.6601,2010.6,2009.9,5.27685]
[1617793813028,43.6681,2011.4,2009.9,5.27685]
[1617793813227,13.6681,2011.4,2009.9,5.27685]
[1617793814429,13.6681,2011.4,2010.8,2.90695]
[1617793814629,13.6681,2011.4,2010.8,5.03855]
[1617793816532,2.90695,2010.9,2010.8,5.03855]
[1617793817032,2.90695,2010.9,2010.8,2.90695]
[1617793818835,2.90695,2010.9,2009.6,75.9076]
[1617793819135,76.8476,2010.8,2009.4,13.0535]
[1617793819535,78.9204,2010.8,2009.4,13.0535]
[1617793820558,78.9204,2010.8,2010.1,2.90695]
[1617793821353,78.9204,2010.8,2009.4,13.0535]
[1617793821845,2.0,2010.7,2009.4,13.0535]
[1617793822038,30.0,2010.6,2008.5,79.9073]
[1617793822540,30.0,2010.6,2009.6,2.90695]
[1617793822976,30.0,2010.6,2007.8,13.056]
[1617793823140,83.1299,2009.9,2007.8,13.056]
[1617793823340,85.1686,2009.9,2007.8,13.056]
[1617793824540,85.1686,2009.9,2008.9,2.90695]
[1617793824842,30.0,2009.8,2008.9,2.90695]
[1617793826139,85.1686,2009.9,2008.9,2.90695]
[1617793826641,2.90695,2009.0,2008.9,2.90695]
[1617793828258,2.90695,2009.0,2007.8,13.056]
[1617793828444,79.0796,2008.7,2007.8,13.056]
[1617793828765,81.7811,2008.7,2008.3,2.90695]
[1617793830544,2.90695,2008.4,2008.3,2.90695]
[1617793833051,2.90695,2008.4,2006.6,14.1156]
[1617793833453,78.2348,2007.7,2006.6,14.1156]
[1617793833652,81.2102,2007.7,2005.8,1.9853]
[1617793833854,2.9754,2007.7,2005.8,1.9853]
[1617793834055,78.2582,2006.8,2005.3,13.461]
[1617793834254,80.2229,2006.8,2005.3,13.461]
[1617793834654,80.2229,2006.8,2006.5,2.90695]
[1617793835354,31.9647,2006.8,2005.3,1.0122]
[1617793835554,63.0249,2005.5,2005.2,0.9828]
[1617793835754,65.546,2005.5,2005.2,0.9828]
[1617793835954,2.5211,2005.5,2004.3,5.28732198]
[1617793836154,2.5211,2005.5,2004.1,13.9273]
[1617793836555,2.5211,2005.5,2005.4,2.90695]
[1617793836755,2.90695,2006.3,2005.4,2.90695]
[1617793836953,1.9647,2006.8,2005.4,2.90695]
[1617793837357,82.7549,2007.2,2005.4,2.90695]
[1617793837856,13.8937,2007.4,2005.4,2.90695]
[1617793838055,66.5202,2006.2,2005.4,2.90695]
[1617793838255,69.2224,2006.2,2005.4,2.90695]
[1617793838756,69.2224,2006.2,2005.7,2.90695]
[1617793838757,2.7022,2006.2,2005.7,2.90695]
[1617793841472,73.6038,2006.8,2005.7,2.90695]
[1617793841760,73.6038,2006.8,2005.7,5.40615]
[1617793842789,76.51075,2006.8,2005.7,2.4992]
[1617793843361,76.51075,2006.8,2005.0,2.8466]
[1617793844469,76.51075,2006.8,2004.6,77.4177]
[1617793844668,73.6038,2006.8,2006.3,2.90695]
[1617793846868,2.90695,2006.4,2006.3,2.90695]
[1617793847569,73.6038,2006.8,2006.3,2.90695]
[1617793848771,2.90695,2006.4,2006.3,2.90695]
[1617793850273,2.90695,2006.4,2004.6,77.4177]
[1617793850674,2.90695,2006.4,2006.3,2.90695]
[1617793853887,73.6038,2006.8,2006.3,2.90695]
[1617793854282,13.8937,2007.4,2006.3,2.90695]
[1617793854711,13.8937,2007.4,2007.0,2.90695]
[1617793854893,65.4292,2007.5,2007.0,5.78365]
[1617793856683,65.4292,2007.5,2006.1,12.9399]
[1617793857188,2.0349,2007.9,2006.1,12.9399]
[1617793857410,70.0548,2006.8,2004.6,2.571]
[1617793857585,72.8452,2006.8,2004.6,2.571]
[1617793857986,72.8452,2006.8,2004.3,13.6905]
[1617793858386,2.7904,2006.8,2004.3,13.6905]
[1617793858586,2.0,2006.7,2004.3,13.6905]
[1617793858786,78.3052,2005.6,2004.7,2.90695]
[1617793859086,81.3674,2005.6,2004.7,2.90695]
[1617793860596,81.3674,2005.6,2004.3,13.6905]
[1617793860788,81.3674,2005.6,2004.4,2.90695]
[1617793861889,83.3674,2005.6,2004.4,2.90695]
[1617793862090,81.3674,2005.6,2004.4,2.90695]
[1617793862592,78.3052,2005.6,2004.4,2.90695]
[1617793862791,2.90695,2005.0,2004.9,2.90695]
[1617793863193,4.83215,2005.0,2004.1,0.02]
[1617793863697,57.9989,2004.5,2004.1,0.02]
[1617793863896,60.8867,2004.5,2004.1,0.02]
[1617793864894,2.90695,2004.2,2003.2,2.90695]
[1617793865097,71.5033,2003.6,2003.2,2.90695]
[1617793865304,73.7686,2003.6,2003.2,2.90695]
[1617793865698,73.7686,2003.6,2001.9,13.6051]
[1617793865898,2.2653,2003.6,2001.9,13.6051]
[1617793866412,82.3533,2002.8,2001.9,13.6251]
[1617793866605,84.6699,2002.8,2001.9,13.6251]
[1617793866896,84.6699,2002.8,2002.7,2.90695]
[1617793867702,82.3533,2002.8,2002.7,2.90695]
[1617793870609,2.90695,2003.1,2002.7,2.90695]
[1617793871007,2.90695,2003.1,2003.0,2.90695]
[1617793871608,2.90695,2003.1,2002.6,1.9499]
[1617793872209,2.90695,2003.1,2002.5,0.02]
[1617793873009,81.025,2003.4,2002.6,2.90695]
[1617793873211,81.025,2003.4,2002.6,5.51215]
[1617793874212,81.025,2003.4,2002.6,6.50475]
[1617793874513,81.025,2003.4,2002.6,3.89955]
[1617793874712,81.025,2003.4,2002.6,2.90695]
[1617793874913,81.025,2003.4,2003.1,2.90695]
[1617793875612,81.025,2003.4,2002.7,2.1192]
[1617793875813,81.025,2003.4,2002.5,0.02]
[1617793876018,83.7539,2003.4,2002.5,0.02]
[1617793876914,83.7539,2003.4,2002.7,2.90695]
[1617793877114,83.7539,2003.4,2002.5,0.02]
[1617793878134,81.025,2003.4,2002.5,0.02]
[1617793879020,81.025,2003.4,2002.8,2.90695]
[1617793879222,81.025,2003.4,2002.5,2.3157]
[1617793880920,81.025,2003.4,2002.8,2.90695]
[1617793882022,81.025,2003.4,2002.5,0.02]
[1617793883122,2.90695,2002.6,2002.5,0.02]
[1617793884923,5.18075,2002.6,2002.5,0.02]
[1617793886630,2.90695,2002.6,2002.5,0.02]
[1617793887046,73.44005,2002.6,2002.5,0.02]
[1617793887325,2.90695,2002.6,2002.5,0.02]
[1617793887524,70.4663,2003.9,2002.5,0.02]
[1617793887731,70.4663,2003.9,2002.5,2.9766]
[1617793888525,65.6092,2005.1,2002.5,2.9766]
[1617793888925,65.6092,2005.1,2002.5,2.9566]
[1617793889128,65.6092,2005.1,2003.9,2.90695]
[1617793889327,65.6092,2005.1,2003.9,5.38735]
[1617793889830,65.6092,2005.1,2003.9,2.4804]
[1617793891156,2.90695,2004.3,2004.0,2.90695]
[1617793892534,65.6092,2005.1,2004.0,2.90695]
[1617793892865,72.4696,2005.8,2004.0,2.90695]
[1617793893149,72.4696,2005.8,2004.9,2.90695]
[1617793893332,72.4696,2005.8,2004.9,5.21765]
[1617793894233,72.4696,2005.8,2004.9,2.3107]
[1617793895135,72.4696,2005.8,2004.9,5.21765]
[1617793895136,3.90205,2005.0,2004.9,5.21765]
[1617793895337,2.90695,2005.0,2004.9,5.21765]
[1617793895836,72.4696,2005.8,2004.9,5.21765]
[1617793896436,72.4696,2005.8,2004.9,6.21665]
[1617793897036,72.4696,2005.8,2005.2,2.90695]
[1617793898239,72.4696,2005.8,2004.0,12.8304]
[1617793898441,75.5359,2005.8,2004.0,12.8304]
[1617793898643,3.0663,2005.8,2004.0,12.8304]
[1617793898846,81.6618,2004.8,2004.0,12.8304]
[1617793899043,81.6618,2004.8,2004.6,2.90695]
[1617793900243,81.6618,2004.8,2004.0,12.8304]
[1617793900450,83.6256,2004.8,2004.0,12.8304]
[1617793901143,83.6256,2004.8,2004.1,2.90695]
[1617793901945,81.6618,2004.8,2004.1,2.90695]
[1617793903245,81.6618,2004.8,2004.6,2.90695]
[1617793903846,81.6618,2004.8,2004.0,12.8304]
[1617793904648,12.9863,2005.7,2004.0,12.8304]
[1617793905249,13.9853,2005.7,2004.3,2.90695]
[1617793905450,12.9863,2005.7,2004.3,5.66685]
[1617793906157,60.8802,2006.0,2004.3,6.63155]
[1617793906355,60.8802,2006.0,2004.3,5.61985]
[1617793907251,60.8802,2006.0,2005.0,2.90695]
[1617793907454,60.8802,2006.0,2005.0,5.48985]
[1617793908453,60.8802,2006.0,2004.0,12.8304]
[1617793908723,63.3127,2006.0,2004.0,12.8304]
[1617793909155,63.3127,2006.0,2004.8,2.90695]
[1617793909956,63.3127,2006.0,2004.0,12.8304]
[1617793911166,63.3127,2006.0,2004.9,2.90695]
[1617793911364,63.3127,2006.0,2004.0,12.8304]
[1617793911570,2.4325,2006.0,2004.0,12.8304]
[1617793911766,63.4719,2005.2,2004.0,12.8304]
[1617793911965,65.8941,2005.2,2004.0,12.8304]
[1617793912769,65.8941,2005.2,2002.4,69.851]
[1617793912967,65.8941,2005.2,2002.5,14.063]
[1617793913167,65.8941,2005.2,2003.4,2.90695]
[1617793913666,67.8941,2005.2,2003.4,2.90695]
[1617793913966,65.8941,2005.2,2002.5,14.063]
[1617793914867,67.8941,2005.2,2002.5,14.063]
[1617793915367,30.0,2005.1,2003.4,2.90695]
[1617793915566,31.003,2005.1,2003.4,2.90695]
[1617793915768,30.0,2004.9,2003.4,2.90695]
[1617793915972,32.0,2004.8,2003.4,2.90695]
[1617793916372,32.0,2004.8,2002.5,14.063]
[1617793916973,76.0142,2004.3,2002.5,14.063]
[1617793917171,30.0,2004.2,2002.6,2.90695]
[1617793918869,30.0,2004.2,2002.5,14.063]
[1617793919070,30.0,2004.0,2002.5,14.063]
[1617793919271,2.90695,2002.6,2002.0,2.90695]
[1617793919482,82.73215,2002.6,2002.0,2.90695]
[1617793920173,82.73215,2002.6,2000.4,13.5958]
[1617793921183,2.90695,2002.2,2002.0,2.90695]
[1617793921600,77.6987,2002.6,2002.0,2.90695]
[1617793921806,1.0,2003.3,2002.0,2.90695]
[1617793921807,1.0,2003.3,2002.0,5.40825]
[1617793922485,56.8106,2003.7,2002.0,5.40825]
[1617793923310,2.0,2004.7,2003.6,2.90695]
[1617793923529,2.0,2004.7,2003.6,5.05115]
[1617793923674,13.6964,2004.9,2003.6,5.05115]
[1617793924176,55.9096,2005.2,2003.6,5.05115]
[1617793925276,2.90695,2003.7,2003.6,5.05115]
[1617793925478,55.9096,2005.2,2003.6,5.05115]
[1617793927278,55.9096,2005.2,2004.6,2.90695]
[1617793927477,55.9096,2005.2,2004.6,5.63385]
[1617793928880,13.2002,2006.3,2004.6,5.63385]
[1617793929296,74.2113,2006.7,2005.7,2.90695]
[1617793929528,74.2113,2006.7,2005.7,5.73195]
[1617793929690,72.2113,2006.7,2005.7,2.825]
[1617793931290,72.2113,2006.7,2005.9,2.90695]
[1617793931687,72.2113,2006.7,2005.7,2.825]
[1617793931888,102.2113,2006.7,2005.7,2.825]
[1617793932088,102.2113,2006.7,2004.7,13.3765]
[1617793932281,72.2113,2006.7,2004.7,13.3765]
[1617793933285,72.2113,2006.7,2006.6,2.90695]
[1617793933586,1.0,2007.0,2006.6,2.5173]
[1617793935291,2.90695,2006.7,2006.6,2.5173]
[1617793937196,2.90695,2006.7,2006.6,2.4973]
[1617793937694,1.0,2007.0,2006.6,2.4973]
[1617793938496,1.0,2007.0,2006.5,2.90695]
[1617793939196,0.0001,2007.0,2006.5,2.90695]
[1617793939396,0.0001,2007.0,2006.9,2.90695]
[1617793939599,2.90695,2007.2,2006.9,2.90695]
[1617793939798,2.90695,2007.2,2006.9,5.09065]
[1617793940700,62.2987,2007.8,2006.9,5.09065]
[1617793940999,14.0259,2008.5,2006.9,5.09065]
[1617793941501,14.0259,2008.5,2007.5,2.90695]
[1617793941699,14.0259,2008.5,2007.5,5.39125]
[1617793942001,1.14012937,2008.2,2007.5,5.39125]
[1617793942299,0.13572937,2008.2,2007.5,5.39125]
[1617793943000,0.13572937,2008.2,2006.7,13.7106]
[1617793943200,2.18382937,2008.2,2006.7,13.7106]
[1617793943408,32.18382937,2008.2,2006.9,2.90695]
[1617793943600,63.677,2008.0,2006.9,2.90695]
[1617793945100,0.13572937,2008.2,2006.9,2.90695]
[1617793945301,0.13572937,2008.2,2006.9,4.94685]
[1617793945501,3.04267937,2008.2,2008.1,2.90695]
[1617793945702,3.04267937,2008.2,2008.1,5.66915]
[1617793946308,2.94727937,2008.2,2008.1,5.66915]
[1617793946503,62.5825,2009.2,2008.1,5.66915]
[1617793946708,0.01374801,2009.7,2008.1,5.66915]
[1617793946905,0.05499205,2009.9,2008.1,5.66915]
[1617793946906,0.01375244,2009.8,2008.1,5.66915]
[1617793947304,0.01375956,2010.1,2008.1,5.66915]
[1617793947504,0.01375956,2010.1,2009.3,2.90695]
[1617793947705,2.571,2010.2,2009.3,5.28955]
[1617793948204,13.16166933,2010.3,2009.3,5.28955]
[1617793948205,13.1479,2010.3,2009.3,5.28955]
[1617793949507,2.90695,2009.9,2009.3,5.28955]
[1617793949705,0.73200195,2009.4,2009.3,5.28955]
[1617793950938,2.90695,2009.9,2009.3,5.28955]
[1617793951606,2.90695,2009.9,2009.8,2.90695]
[1617793951808,2.90695,2009.9,2009.8,4.78645]
[1617793952007,13.1479,2010.3,2009.8,4.78645]
[1617793952207,61.6426,2010.4,2009.8,4.78645]
[1617793953310,61.6426,2010.4,2009.8,2.90695]
[1617793953512,2.90695,2009.9,2009.8,2.90695]
[1617793956112,2.90695,2009.9,2008.0,80.4231]
[1617793957515,61.6426,2010.4,2009.7,2.90695]
[1617793957715,14.2174,2011.1,2009.7,5.99205]
[1617793958015,93.7954,2011.1,2009.7,5.99205]
[1617793959621,93.7954,2011.1,2010.5,2.90695]
[1617793959821,93.7954,2011.1,2010.5,5.27215]
[1617793961626,2.90695,2010.6,2010.5,5.27215]
[1617793962528,2.90695,2010.6,2010.5,2.3652]
[1617793963530,2.90695,2010.6,2010.5,5.27215]
[1617793963730,1.00758449,2012.4,2010.5,5.27215]
[1617793963985,56.6412,2012.4,2010.5,86.20205]
[1617793964170,13.9795,2012.1,2010.5,86.20205]
[1617793964956,13.9795,2012.1,2010.5,5.27215]
[1617793965130,13.9795,2012.1,2010.9,80.4125]
[1617793965632,13.9795,2012.1,2012.0,2.90695]
[1617793965831,13.9795,2012.1,2012.0,5.51615]
[1617793966436,13.9795,2012.1,2012.0,61.52605]
[1617793967736,10.0178,2012.1,2012.0,61.52605]
[1617793968337,13.2778,2012.8,2012.0,61.52605]
[1617793968540,13.2778,2012.8,2012.0,5.51615]
[1617793968741,13.2778,2012.8,2012.5,79.4227]
[1617793969440,13.2778,2012.8,2012.0,2.90695]
[1617793969640,2.90695,2012.1,2012.0,2.90695]
[1617793969840,4.97355,2012.1,2012.0,2.90695]
[1617793970642,4.97355,2012.1,2011.1,56.9916]
[1617793970842,4.97355,2012.1,2008.2,0.9923]
[1617793971043,4.97355,2012.1,2010.4,64.0327]
[1617793971743,2.0666,2012.1,2011.3,2.90695]
[1617793972345,68.3526,2012.3,2010.4,64.0327]
[1617793972545,2.5159,2012.1,2010.4,64.0327]
[1617793972745,30.0,2012.0,2010.4,64.0327]
[1617793974148,2.5159,2012.1,2010.4,64.0327]
[1617793974351,30.0,2012.0,2010.4,64.0327]
[1617793974549,2.0,2011.9,2010.4,64.0327]
[1617793974749,32.0,2011.9,2010.4,64.0327]
[1617793975452,57.0218,2011.4,2008.8,75.9449]
[1617793975654,30.0,2011.3,2009.5,2.90695]
[1617793975882,43.9313,2011.3,2008.8,75.9449]
[1617793976102,45.9313,2011.3,2008.8,75.9449]
[1617793977677,45.9313,2011.3,2009.4,2.90695]
[1617793977897,45.9313,2011.3,2008.8,75.9449]
[1617793978274,59.2621,2011.3,2008.8,75.9449]
[1617793978853,57.2621,2011.3,2008.8,75.9449]
[1617793979052,27.2621,2011.3,2007.1,0.9982]
[1617793979257,27.2621,2011.3,2008.8,56.4801]
[1617793979456,27.2621,2011.3,2008.8,59.1504]
[1617793979753,27.2621,2011.3,2010.6,2.90695]
[1617793979954,27.2621,2011.3,2010.6,5.59015]
[1617793980270,30.0,2011.2,2010.6,2.6832]
[1617793980667,30.0,2011.2,2009.5,3.0804]
[1617793980861,30.0,2011.2,2009.4,57.4326]
[1617793981690,2.90695,2010.6,2010.2,2.90695]
[1617793981872,27.2621,2011.3,2010.2,5.25635]
[1617793982070,27.2621,2011.3,2010.3,77.4532]
[1617793983877,27.2621,2011.3,2010.7,2.90695]
[1617793984966,27.2621,2011.3,2010.7,4.89545]
[1617793985868,27.2621,2011.3,2011.2,2.90695]
[1617793987871,30.16905,2011.3,2010.9,2.90695]
[1617793988072,32.67525,2011.3,2010.9,2.90695]
[1617793989075,30.16905,2011.3,2010.9,2.90695]
[1617793989777,2.90695,2011.0,2010.9,2.90695]
[1617793990877,27.2621,2011.3,2010.9,2.90695]
[1617793991114,27.2621,2011.3,2010.9,4.95635]
[1617793992181,27.2621,2011.3,2010.9,2.90695]
[1617793993787,2.90695,2011.0,2010.9,2.90695]
[1617793994093,5.06395,2011.0,2010.9,2.90695]
[1617793995180,5.06395,2011.0,2008.0,2.5942]
[1617793995381,35.06395,2011.0,2008.4,83.4559]
[1617793995881,2.0,2010.9,2009.8,2.90695]
[1617793996082,30.0,2010.8,2009.8,2.90695]
[1617793996281,30.0,2010.6,2009.8,2.90695]
[1617793996481,2.157,2011.0,2008.4,83.4559]
[1617793996482,32.0,2010.5,2008.4,83.4559]
[1617793996780,34.9426,2010.5,2008.4,83.4559]
[1617793997382,13.8217,2010.4,2008.4,83.4559]
[1617793997583,30.0,2010.3,2005.9,0.9835]
[1617793997783,2.90695,2009.7,2009.1,2.90695]
[1617793997985,56.5761,2009.6,2009.1,2.90695]
[1617793998585,56.5761,2009.6,2006.6,71.473]
[1617793999285,70.5518,2009.6,2006.6,71.473]
[1617793999485,83.6338,2009.6,2006.6,71.473]
[1617793999887,83.6338,2009.6,2009.1,2.90695]
[1617794000288,27.0577,2009.6,2009.1,2.90695]
[1617794001788,29.96465,2009.6,2009.5,2.90695]
[1617794003190,29.96465,2009.6,2008.4,79.0601]
[1617794003392,32.38215,2009.6,2008.4,79.0601]
[1617794003892,32.38215,2009.6,2009.4,2.90695]
[1617794004090,32.38215,2009.6,2007.0,0.9982]
[1617794004091,61.5477,2009.4,2007.4,73.7597]
[1617794005000,91.5477,2009.4,2007.4,73.7597]
[1617794005508,93.5477,2009.4,2007.4,73.7597]
[1617794005895,93.5477,2009.4,2008.7,2.90695]
[1617794006199,63.5477,2009.4,2008.7,2.90695]
[1617794006395,2.0,2009.4,2008.7,2.90695]
[1617794006690,63.9903,2008.8,2008.7,2.90695]
[1617794006897,66.1971,2008.8,2008.7,2.90695]
[1617794007104,2.2068,2008.8,2008.7,2.90695]
[1617794007891,56.9949,2009.3,2008.7,2.90695]
[1617794007892,2.90695,2009.1,2008.7,2.90695]
[1617794008392,56.9949,2009.3,2008.7,2.90695]
[1617794009893,56.9949,2009.3,2009.2,2.90695]
[1617794011208,56.9949,2009.3,2007.4,70.9509]
[1617794011209,30.0,2009.3,1998.6,12.41948347]
[1617794011495,60.8131,2008.1,2005.8,1.0027]
[1617794011824,93.0097,2008.1,2004.9,74.5377]
[1617794012107,93.0097,2008.1,2006.7,2.90695]
[1617794012108,2.90695,2007.0,2006.7,2.90695]
[1617794012297,2.8746,2007.0,2006.7,2.90695]
[1617794014308,2.90695,2007.3,2006.7,2.90695]
[1617794015501,13.743,2007.9,2006.7,2.90695]
[1617794016003,13.743,2007.9,2006.6,2.1234]
[1617794016004,13.743,2007.9,2007.5,2.90695]
[1617794017904,13.743,2007.9,2005.5,2.1825]
[1617794018104,2.90695,2007.6,2004.9,1.9421]
[1617794018403,68.2446,2006.6,2003.6,83.4636]
[1617794018702,70.8893,2006.6,2003.6,83.4636]
[1617794019308,13.9638,2006.5,2003.6,83.4636]
[1617794020008,13.9638,2006.5,2006.4,2.90695]
[1617794023617,13.743,2007.9,2006.4,2.90695]
[1617794023936,13.8258,2007.8,2006.4,2.90695]
[1617794024133,13.8258,2007.8,2006.2,65.7876]
[1617794025343,13.8258,2007.8,2006.2,2.0382]
[1617794025623,13.8258,2007.8,2004.5,64.0912]
[1617794025624,58.3561,2007.1,2004.5,64.0912]
[1617794025818,60.3241,2007.1,2004.5,64.0912]
[1617794026018,60.3241,2007.1,2006.9,2.90695]
[1617794026221,60.3241,2007.1,2004.5,64.0912]
[1617794026422,80.8651,2006.1,2004.1,2.571]
[1617794026622,82.8506,2006.1,2004.1,2.571]
[1617794026953,82.8506,2006.1,2003.2,86.022]
[1617794027774,14.1477,2006.0,2003.2,86.022]
[1617794028125,14.1477,2006.0,2005.4,2.90695]
[1617794028337,14.1477,2006.0,2005.4,3.91515]
[1617794028524,13.8666,2005.9,2005.4,2.90695]
[1617794030026,13.8666,2005.9,2005.8,2.90695]
[1617794030324,13.8666,2005.9,2005.8,5.26615]
[1617794030729,13.8666,2005.9,2005.8,2.3592]
[1617794031328,13.8666,2005.9,2005.1,2.2539]
[1617794031527,13.8666,2005.9,2003.2,83.451]
[1617794032029,13.8666,2005.9,2005.5,2.90695]
[1617794034140,2.90695,2005.6,2005.5,2.90695]
[1617794034732,13.8666,2005.9,2005.5,2.90695]
[1617794034931,13.8666,2005.9,2005.5,5.05745]
[1617794035958,13.8666,2005.9,2005.5,2.90695]
[1617794036138,2.90695,2005.6,2005.5,2.90695]
[1617794037041,2.90695,2005.6,2000.3,5.558]
[1617794037042,2.90695,2005.6,2001.9,4.6624]
[1617794037335,2.90695,2005.6,2002.4,1.0066]
[1617794037535,2.90695,2005.6,2002.9,79.3385]
[1617794037836,75.913,2005.7,2002.9,79.3385]
[1617794038038,75.913,2005.7,2002.9,81.9095]
[1617794038238,16.77355,2005.9,2005.6,2.90695]
[1617794038438,16.77355,2005.9,2005.6,4.83955]
[1617794038757,13.8666,2005.9,2005.6,4.83955]
[1617794039940,13.8666,2005.9,2005.6,2.90695]
[1617794041443,13.8666,2005.9,2004.6,72.5405]
[1617794042145,13.8666,2005.9,2005.7,2.90695]
[1617794042844,13.8666,2005.9,2005.7,5.30405]
[1617794043661,13.8666,2005.9,2005.7,2.3971]
[1617794043910,76.1412,2005.7,2003.5,77.2577]
[1617794044249,76.1412,2005.7,2005.2,2.90695]
[1617794046256,76.1412,2005.7,2005.6,2.90695]
[1617794048058,76.1412,2005.7,2003.5,79.6258]
[1617794048258,76.1412,2005.7,2005.5,2.90695]
[1617794049397,13.8666,2005.9,2005.5,5.95025]
[1617794050259,13.8666,2005.9,2005.8,2.90695]
[1617794056165,16.77355,2005.9,2005.8,2.90695]
[1617794058775,57.5707,2005.8,2003.6,65.6699]
[1617794059486,2.0,2005.7,2003.6,65.6699]
[1617794060283,2.0,2005.7,2005.3,2.90695]
[1617794060570,2.9832,2005.7,2003.6,65.6699]
[1617794061576,32.9832,2005.7,2003.6,65.6699]
[1617794061776,2.9832,2005.7,2003.6,65.6699]
[1617794062171,32.9832,2005.7,2003.6,65.6699]
[1617794062373,2.90695,2005.0,2004.9,2.90695]
[1617794066481,0.983,2005.1,2004.9,2.90695]
[1617794067099,0.9832,2005.7,2004.9,2.90695]
[1617794067584,0.9832,2005.7,2004.9,5.42875]
[1617794067988,57.5707,2005.8,2004.9,5.42875]
[1617794068482,57.5707,2005.8,2005.6,2.90695]
[1617794068782,57.5707,2005.8,2005.6,5.04375]
[1617794069785,13.8666,2005.9,2005.6,5.04375]
[1617794073590,12.8666,2005.9,2005.6,5.04375]
[1617794074791,11.8666,2005.9,2005.6,5.04375]
[1617794076492,13.1036,2007.3,2005.6,5.04375]
[1617794076493,13.1036,2007.3,2005.7,82.1531]
[1617794077094,66.986,2008.1,2005.7,82.1531]
[1617794078496,66.986,2008.1,2008.0,2.90695]
[1617794078694,66.986,2008.1,2008.0,5.72015]
[1617794082102,13.5328,2008.6,2008.0,5.72015]
[1617794082301,78.0765,2008.6,2008.0,5.72015]
[1617794082502,78.0765,2008.6,2008.4,2.90695]
[1617794083121,13.5328,2008.6,2008.4,2.90695]
[1617794084309,16.43975,2008.6,2008.4,2.90695]
[1617794084734,13.5328,2008.6,2008.4,2.90695]
[1617794084940,75.9469,2008.5,2008.4,2.90695]
[1617794085149,13.5328,2008.6,2008.4,2.90695]
[1617794085403,14.528,2008.6,2008.4,2.90695]
[1617794085601,13.5328,2008.6,2008.4,2.90695]
[1617794086227,75.8789,2009.8,2008.4,2.90695]
[1617794086441,78.78585,2009.8,2009.7,2.90695]
[1617794086658,78.78585,2009.8,2009.7,5.89755]
[1617794086835,78.78585,2009.8,2009.7,2.9906]
[1617794087115,108.78585,2009.8,2007.7,57.1719]
[1617794087314,35.85205,2009.8,2006.3,2.4064]
[1617794087504,65.0239,2008.7,2006.3,2.4064]
[1617794087771,2.6016,2008.7,2006.3,2.4064]
[1617794087962,2.6016,2008.7,2006.9,83.4437]
[1617794088160,2.6016,2008.7,2006.9,86.5052]
[1617794088405,2.6016,2008.7,2006.9,87.4952]
[1617794088705,2.6016,2008.7,2008.6,2.90695]
[1617794088915,66.38255,2009.8,2008.6,2.90695]
[1617794089610,68.38255,2009.8,2008.6,2.90695]
[1617794090611,2.90695,2008.7,2008.6,2.90695]
[1617794091017,4.97685,2008.7,2007.1,0.9857]
[1617794091218,4.97685,2008.7,2006.9,0.99]
[1617794091513,58.4857,2008.2,2005.6,82.2583]
[1617794091714,61.5567,2008.2,2005.6,82.2583]
[1617794092616,61.5567,2008.2,2008.1,2.90695]
[1617794092813,2.5267,2009.5,2008.1,2.90695]
[1617794093015,75.7035,2008.8,2008.1,2.90695]
[1617794093213,2.1022,2008.8,2008.1,2.90695]
[1617794094417,2.0,2009.8,2008.1,2.90695]
[1617794094617,2.0,2009.8,2009.1,2.90695]
[1617794095218,2.0,2009.8,2008.1,2.2197]
[1617794096320,1.0006,2010.0,2008.1,2.2197]
[1617794096521,81.344,2010.1,2009.4,2.90695]
[1617794096820,81.344,2010.1,2009.4,5.35375]
[1617794098427,111.344,2010.1,2008.8,2.8129]
[1617794098624,111.344,2010.1,2009.1,2.90695]
[1617794098824,2.0,2010.0,2009.1,2.90695]